bitfinex-derivatives/quotes_SOLF0:USTF0_20250409
["timestamp","ask_amount","ask_price","bid_price","bid_amount"]
[1744224448810,21.2682,118.31,118.27,413.26481576]
[1744224449120,73.22,118.43,118.3,48.26481576]
[1744224449419,682.5,118.46,118.38,48.26481576]
[1744224449719,0.06234,118.43,118.32,48.26481576]
[1744224450019,682.5,118.46,118.36,48.26481576]
[1744224450317,690.9445,118.46,118.36,48.32866332]
[1744224450518,0.0540622,118.42,118.36,48.26481576]
[1744224450815,0.0540622,118.42,118.4,0.05640166]
[1744224451320,56.75887796,118.42,118.31,4.4408]
[1744224451620,48.26481576,118.44,118.34,48.26481576]
[1744224451819,682.5,118.46,118.38,48.26481576]
[1744224452117,682.5,118.46,118.4,48.26481576]
[1744224452306,682.5,118.46,118.42,8.4463]
[1744224452506,0.06013756,118.43,118.41,0.05760663]
[1744224453412,0.06013756,118.43,118.41,8.50460663]
[1744224453619,0.06013756,118.43,118.41,0.05760663]
[1744224455308,0.06013756,118.43,118.34,48.26481576]
[1744224455309,73.14,118.42,118.34,48.26481576]
[1744224455607,608.72,118.44,118.36,48.26481576]
[1744224456017,8.4467,118.43,118.35,8.4517]
[1744224456214,608.72,118.44,118.34,48.26481576]
[1744224456410,0.05999638,118.4,118.33,369.5059]
[1744224456721,0.05999638,118.4,118.34,48.26481576]
[1744224456922,0.05999638,118.4,118.35,0.05688957]
[1744224459918,48.26481576,118.5,118.35,0.05688957]
[1744224459919,121.50841576,118.52,118.38,96.52963152]
[1744224460119,1.68762129,118.51,118.42,48.26481576]
[1744224460414,48.26481576,118.5,118.4,48.26481576]
[1744224460623,40.14225255,118.49,118.39,8.941]
[1744224460918,1.68804861,118.48,118.39,8.941]
[1744224461120,0.05857691,118.45,118.43,0.06256887]
[1744224462024,0.05857691,118.45,118.34,46.9066464]
[1744224462224,111.4543464,118.46,118.36,38.4543464]
[1744224462717,73.0,118.46,118.36,38.4543464]
[1744224463416,0.05513603,118.42,118.4,0.05961623]
[1744224464615,0.05513603,118.42,118.4,38.51396263]
[1744224465128,0.05513603,118.42,118.4,0.05961623]
[1744224465827,0.05513603,118.42,118.34,4.2642]
[1744224466026,38.4543464,118.43,118.34,4.2642]
[1744224466328,8.4488,118.4,118.34,4.2642]
[1744224466828,0.06424776,118.38,118.36,0.06388623]
[1744224467025,38.4543464,118.41,118.36,0.06388623]
[1744224467230,38.4543464,118.41,118.29,38.4543464]
[1744224467231,38.4543464,118.37,118.27,8.865]
[1744224467432,73.0,118.4,118.31,38.4543464]
[1744224468130,73.0,118.4,118.29,38.4543464]
[1744224468330,8.4518,118.35,118.34,0.05381709]
[1744224468726,0.06493358,118.37,118.27,412.38935086]
[1744224468928,8.453,118.34,118.29,38.52435086]
[1744224469130,38.52435086,118.4,118.27,412.38935086]
[1744224469430,73.0,118.39,118.3,38.52435086]
[1744224469820,0.06318775,118.36,118.3,403.52435086]
[1744224470019,8.4524,118.35,118.3,403.52435086]
[1744224470322,0.06318775,118.36,118.3,403.52435086]
[1744224470624,8.51478775,118.36,118.3,411.97955086]
[1744224471229,0.06318775,118.36,118.31,8.4543]
[1744224471431,0.06318775,118.36,118.31,62.0]
[1744224471730,8.51438775,118.36,118.31,70.4544]
[1744224472330,8.452,118.35,118.31,62.0]
[1744224472519,0.06318775,118.36,118.31,62.0]
[1744224472723,0.06318775,118.36,118.3,411.97975086]
[1744224473032,8.452,118.35,118.3,411.97975086]
[1744224473328,0.06318775,118.36,118.3,411.97975086]
[1744224473826,8.4519,118.35,118.3,411.97975086]
[1744224474126,0.06318775,118.36,118.32,38.52435086]
[1744224474333,681.4,118.43,118.34,38.52435086]
[1744224474520,73.0,118.47,118.38,46.97395086]
[1744224474721,8.4459,118.44,118.38,38.52435086]
[1744224474925,73.0,118.47,118.4,46.97245086]
[1744224475321,73.0,118.47,118.35,373.7638]
[1744224475322,8.4466,118.43,118.36,38.52435086]
[1744224475524,8.4466,118.43,118.42,0.06250229]
[1744224475726,0.0563715,118.41,118.39,62.0]
[1744224475922,8.4475,118.42,118.39,62.05875432]
[1744224476232,73.0,118.47,118.38,38.52435086]
[1744224476233,0.06083964,118.41,118.38,38.52435086]
[1744224476525,0.06083964,118.41,118.39,0.06380259]
[1744224476526,8.4481,118.41,118.39,0.06380259]
[1744224476723,0.05545155,118.41,118.39,0.06380259]
[1744224478442,0.0902,118.49,118.4,38.52435086]
[1744224478729,38.52435086,118.47,118.35,412.28815086]
[1744224478932,72.98,118.46,118.39,38.52435086]
[1744224479132,72.98,118.46,118.4,62.0]
[1744224479333,0.05993058,118.44,118.41,0.05709572]
[1744224481028,111.50435086,118.43,118.35,4.5956]
[1744224481229,38.52435086,118.41,118.32,365.0]
[1744224481426,72.98,118.43,118.33,4.44927504]
[1744224481626,38.52435086,118.41,118.34,4.35619369]
[1744224481827,38.52435086,118.39,118.33,365.0]
[1744224482135,38.52435086,118.37,118.28,378.0002]
[1744224482330,72.98,118.36,118.29,13.15762957]
[1744224482525,72.98,118.36,118.3,6.04939334]
[1744224482831,72.98,118.4,118.34,8.4523]
[1744224483038,8.449,118.4,118.35,4.35877627]
[1744224483341,72.98,118.44,118.36,12.87328839]
[1744224483635,0.05353269,118.39,118.37,51.39763925]
[1744224483836,608.26,118.45,118.4,8.4479]
[1744224484027,608.26,118.45,118.37,51.52395086]
[1744224484028,608.26,118.45,118.41,21.74054917]
[1744224484229,608.26,118.45,118.42,12.87328839]
[1744224484437,608.26,118.45,118.43,12.87837637]
[1744224484629,8.4454,118.44,118.43,8.86726078]
[1744224484830,8.4454,118.44,118.43,21.49535533]
[1744224485027,8.4454,118.44,118.43,8.86726078]
[1744224485230,8.4497,118.38,118.33,38.52435086]
[1744224485429,111.50435086,118.42,118.34,12.64286549]
[1744224485635,111.50435086,118.42,118.35,12.64286549]
[1744224485841,111.50435086,118.42,118.33,8.6219]
[1744224486138,111.50435086,118.42,118.34,12.21851135]
[1744224486439,0.06083518,118.39,118.35,8.31561212]
[1744224486643,0.06083518,118.39,118.3,63.69061707]
[1744224486938,38.52435086,118.4,118.31,12.06223929]
[1744224487140,38.52435086,118.4,118.3,72.14561707]
[1744224487141,0.06338575,118.36,118.32,8.33342255]
[1744224487339,0.06338575,118.36,118.3,1.69061707]
[1744224487545,72.84,118.35,118.3,1.69061707]
[1744224487839,72.84,118.35,118.31,8.18418241]
[1744224488033,72.84,118.35,118.27,47.43975086]
[1744224488241,72.84,118.35,118.28,11.91560664]
[1744224488422,0.06247072,118.34,118.29,11.91560664]
[1744224488627,0.06247072,118.34,118.27,47.43975086]
[1744224488628,0.06247072,118.34,118.3,11.91560664]
[1744224488922,0.06247072,118.34,118.31,8.18425403]
[1744224489127,0.06247072,118.34,118.27,55.89665086]
[1744224489327,8.454,118.32,118.28,11.92491766]
[1744224489541,0.06247072,118.34,118.29,3.73426756]
[1744224489732,11.45383516,118.37,118.27,47.43975086]
[1744224489733,0.05533797,118.31,118.3,8.18932826]
[1744224490040,72.84,118.36,118.3,8.18932826]
[1744224490244,0.0598697,118.32,118.27,8.4569]
[1744224490542,0.0598697,118.32,118.28,11.92389847]
[1744224490741,11.30873516,118.37,118.29,46.71428132]
[1744224491040,11.30873516,118.37,118.35,38.52435086]
[1744224491246,33.9262055,118.38,118.36,11.92274681]
[1744224491543,33.9262055,118.38,118.34,4.421]
[1744224491745,33.9262055,118.38,118.35,11.91450346]
[1744224491942,0.05422383,118.37,118.36,8.18359549]
[1744224492244,0.05422383,118.37,118.35,0.05713329]
[1744224492441,8.4511,118.36,118.35,0.05713329]
[1744224493044,8.4524,118.35,118.3,8.4551]
[1744224493247,8.4524,118.35,118.31,11.91826137]
[1744224493545,25.90743994,118.37,118.32,11.91753996]
[1744224493740,25.90743994,118.37,118.35,38.52435086]
[1744224494043,25.96243185,118.37,118.33,100.52435086]
[1744224494228,90.46988134,118.4,118.36,77.04870172]
[1744224494428,135.70482201,118.42,118.41,46.97185086]
[1744224494429,24.18763445,118.42,118.41,46.97185086]
[1744224494628,13.2838,118.53,118.41,50.42483036]
[1744224494932,13.2838,118.53,118.44,8.4454]
[1744224495133,660.26815086,118.53,118.44,8.17654567]
[1744224495337,660.26815086,118.53,118.41,403.52435086]
[1744224495533,660.26815086,118.53,118.43,0.05972436]
[1744224495534,0.05396447,118.46,118.43,0.05972436]
[1744224495942,4.5086,118.47,118.4,8.4478]
[1744224496143,0.05478478,118.46,118.43,0.05972436]
[1744224496640,8.4454,118.44,118.43,0.05972436]
[1744224496948,0.05478478,118.46,118.43,0.05972436]
[1744224497143,8.4454,118.44,118.43,0.05972436]
[1744224497535,0.05478478,118.46,118.43,0.05972436]
[1744224497731,0.05478478,118.46,118.43,38.58407522]
[1744224498042,0.05478478,118.46,118.45,46.96905086]
[1744224498346,0.05478478,118.46,118.45,8.4447]
[1744224498741,0.05478478,118.46,118.43,0.05972436]
[1744224499245,8.478e-05,118.46,118.45,46.96905086]
[1744224499846,8.478e-05,118.46,118.45,8.4447]
[1744224500555,8.478e-05,118.46,118.45,46.96905086]
[1744224500955,8.478e-05,118.46,118.45,108.96905086]
[1744224501246,111.34435086,118.58,118.45,427.0]
[1744224501434,115.90465086,118.58,118.45,465.52435086]
[1744224501630,38.52435086,118.56,118.45,465.52435086]
[1744224502247,0.05829681,118.52,118.49,0.05786444]
[1744224502748,0.05829681,118.52,118.39,365.0]
[1744224502936,0.05829681,118.52,118.45,38.52435086]
[1744224503135,38.52435086,118.57,118.47,8.4427]
[1744224503337,38.52435086,118.57,118.45,38.52435086]
[1744224503537,8.4387,118.54,118.47,38.52435086]
[1744224503737,0.05789238,118.52,118.5,0.0566447]
[1744224503944,0.05789238,118.52,118.51,38.52435086]
[1744224504147,4.5603,118.58,118.49,38.52435086]
[1744224504340,0.0607356,118.53,118.5,0.05473062]
[1744224504643,0.0607356,118.53,118.46,403.52435086]
[1744224504840,0.0607356,118.53,118.5,0.05336507]
[1744224506257,0.0607356,118.53,118.5,38.57771593]
[1744224506455,0.0607356,118.53,118.5,0.05336507]
[1744224508250,0.0607356,118.53,118.5,38.57771593]
[1744224508844,45.34383745,118.62,118.52,38.52435086]
[1744224509037,45.34383745,118.62,118.56,46.96095086]
[1744224509243,45.34383745,118.62,118.56,38.52435086]
[1744224509553,45.34383745,118.62,118.58,38.52435086]
[1744224510050,0.05539005,118.61,118.59,0.06270821]
[1744224510251,0.05539005,118.61,118.59,365.06270821]
[1744224510452,45.34383745,118.62,118.6,38.52435086]
[1744224510654,90.6876749,118.64,118.6,476.28435086]
[1744224511154,90.6876749,118.64,118.63,8.4319]
[1744224512048,83.7477749,118.64,118.63,435.4319]
[1744224512249,136.09524148,118.65,118.64,8.4312]
[1744224512445,122.94374148,118.65,118.64,411.95555086]
[1744224512650,226.71918726,118.67,118.66,8.4297]
[1744224512850,226.71918726,118.67,118.66,46.95405086]
[1744224513158,226.71918726,118.67,118.66,38.52435086]
[1744224513357,226.71918726,118.67,118.66,46.95405086]
[1744224514251,226.71918726,118.67,118.66,38.52435086]
[1744224514564,226.71918726,118.67,118.65,0.06180914]
[1744224514760,226.71918726,118.67,118.64,8.4308]
[1744224514965,244.11308726,118.67,118.57,38.52435086]
[1744224515258,235.69308726,118.67,118.65,126.78921459]
[1744224515459,8.4297,118.66,118.65,85.18911459]
[1744224515647,38.52435086,118.66,118.62,227.57466856]
[1744224515852,38.52435086,118.64,118.62,193.47276856]
[1744224516053,81.1519,118.63,118.62,193.47276856]
[1744224516363,81.1519,118.63,118.62,193.53333775]
[1744224516562,16.8519,118.63,118.62,193.53333775]
[1744224516764,8.4319,118.63,118.62,0.06056919]
[1744224517365,0.06023032,118.65,118.62,0.06056919]
[1744224518469,8.4319,118.63,118.62,0.06056919]
[1744224518770,8.4319,118.63,118.62,6.919e-05]
[1744224518963,16.8519,118.63,118.62,6.919e-05]
[1744224519671,8.4319,118.63,118.62,6.919e-05]
[1744224520869,0.06023032,118.65,118.62,6.919e-05]
[1744224520870,8.4315,118.64,118.62,6.919e-05]
[1744224521064,0.06023032,118.65,118.62,6.919e-05]
[1744224521573,8.4313,118.64,118.62,6.919e-05]
[1744224521769,0.06023032,118.65,118.62,6.919e-05]
[1744224522275,8.4319,118.63,118.62,6.919e-05]
[1744224525784,55.37625086,118.63,118.62,6.919e-05]
[1744224526274,8.4333,118.61,118.6,4.16331]
[1744224526476,119.55765086,118.61,118.6,4.16331]
[1744224526673,8.4333,118.61,118.6,4.16331]
[1744224527580,0.05642802,118.62,118.6,4.16331]
[1744224527979,0.05642802,118.62,118.6,12.59691]
[1744224528179,0.05642802,118.62,118.6,4.16331]
[1744224529573,226.71918726,118.67,118.6,4.16331]
[1744224529783,8.4317,118.64,118.6,4.16331]
[1744224529989,226.71918726,118.67,118.6,4.16331]
[1744224530489,226.71918726,118.67,118.61,38.52435086]
[1744224530791,0.05931217,118.65,118.62,0.05702066]
[1744224531096,226.71918726,118.67,118.64,38.52435086]
[1744224531388,283.39898408,118.69,118.65,4.6198]
[1744224532293,0.06430184,118.68,118.66,0.05922253]
[1744224532698,8.429,118.67,118.66,0.05922253]
[1744224533083,283.39898408,118.69,118.66,239.78018801]
[1744224533594,8.429,118.67,118.66,239.78018801]
[1744224533891,81.009,118.67,118.66,232.71478801]
[1744224534404,8.4318,118.64,118.61,196.05900297]
[1744224534585,283.39898408,118.69,118.61,196.05900297]
[1744224534894,8.4306,118.65,118.64,0.05685047]
[1744224535285,0.05509443,118.66,118.64,0.05685047]
[1744224535480,8.4305,118.65,118.64,0.05685047]
[1744224535889,8.4326,118.62,118.61,196.05900297]
[1744224536391,8.4313,118.64,118.61,196.05900297]
[1744224536595,321.92333494,118.69,118.61,196.05900297]
[1744224536793,283.39898408,118.69,118.61,196.05900297]
[1744224536997,8.4308,118.65,118.61,196.05900297]
[1744224537196,8.4308,118.65,118.64,0.06432066]
[1744224537387,0.06334451,118.66,118.6,32.14953466]
[1744224537896,0.06334451,118.66,118.62,0.05490579]
[1744224538197,8.4319,118.63,118.62,0.03440579]
[1744224538382,72.58,118.63,118.6,32.14953466]
[1744224538980,8.4333,118.61,118.6,32.14953466]
[1744224539392,8.4333,118.61,118.6,4.16331]
[1744224540500,8.4333,118.61,118.6,1e-05]
[1744224541420,46.96435086,118.61,118.56,28.06788852]
[1744224541604,38.52435086,118.57,118.56,14.74848852]
[1744224541814,718.22435086,118.57,118.54,10.8207747]
[1744224542098,679.7,118.57,118.54,10.8207747]
[1744224542404,718.22435086,118.57,118.54,10.8207747]
[1744224542592,718.22435086,118.57,118.52,58.21595002]
[1744224542804,718.28071003,118.57,118.54,0.05692276]
[1744224542999,679.75635917,118.57,118.54,0.05692276]
[1744224543308,679.75464441,118.57,118.54,0.0574777]
[1744224543600,8.4376,118.55,118.54,7.77e-05]
[1744224543809,38.52435086,118.55,118.49,58.21595002]
[1744224543999,38.52435086,118.53,118.49,58.21595002]
[1744224544190,8.4411,118.5,118.49,58.21595002]
[1744224544399,81.0211,118.5,118.49,58.21595002]
[1744224545309,679.82,118.5,118.4,365.0]
[1744224545502,38.52435086,118.49,118.39,4.3023]
[1744224545805,38.58433768,118.47,118.37,38.52435086]
[1744224546003,38.52435086,118.49,118.39,43.05025086]
[1744224546202,679.82,118.5,118.39,43.05025086]
[1744224546401,8.4435,118.47,118.42,8.4466]
[1744224546609,0.05670444,118.46,118.39,43.05025086]
[1744224546797,0.05670444,118.46,118.43,8.4457]
[1744224547003,0.05670444,118.46,118.39,43.05025086]
[1744224547606,0.05670444,118.46,118.39,4.5259]
[1744224548315,72.52,118.45,118.39,4.5259]
[1744224548818,0.05810373,118.43,118.39,4.5259]
[1744224549112,8.50490373,118.43,118.39,4.5259]
[1744224549302,8.50490373,118.43,118.32,633.26277245]
[1744224549303,0.05810373,118.43,118.32,633.26277245]
[1744224549510,38.52435086,118.45,118.34,38.52435086]
[1744224549814,0.06082705,118.39,118.34,38.52435086]
[1744224550204,0.06082705,118.39,118.38,8.4497]
[1744224550406,72.52,118.48,118.38,77.04870172]
[1744224550716,72.52,118.48,118.39,4.2959]
[1744224551221,8.4443,118.46,118.4,13.0466]
[1744224551715,72.52,118.48,118.4,13.0466]
[1744224551716,0.05390218,118.44,118.43,8.4461]
[1744224551920,72.52,118.48,118.42,0.06069091]
[1744224552120,0.06149406,118.45,118.42,0.06069091]
[1744224553516,0.06149406,118.45,118.42,8.50719091]
[1744224553920,72.56,118.52,118.43,38.52435086]
[1744224554124,72.56,118.52,118.43,42.93875086]
[1744224554420,72.56,118.52,118.47,8.443]
[1744224554603,72.56,118.52,118.45,38.52435086]
[1744224554915,81.0003,118.52,118.47,8.4433]
[1744224555124,0.05446191,118.5,118.47,0.05682737]
[1744224557111,0.05446191,118.5,118.49,8.4418]
[1744224557516,0.05446191,118.5,118.47,0.05682737]
[1744224558516,38.52435086,118.6,118.48,38.52435086]
[1744224558819,8.4366,118.57,118.53,8.4388]
[1744224559013,38.52435086,118.62,118.5,100.52435086]
[1744224559215,38.52435086,118.62,118.52,38.52435086]
[1744224559216,1.68619846,118.61,118.52,38.52435086]
[1744224559618,0.05964379,118.58,118.55,0.05553084]
[1744224559819,1.68676731,118.57,118.55,0.05553084]
[1744224560816,0.05964379,118.58,118.55,8.49243084]
[1744224561020,0.05964379,118.58,118.55,0.05553084]
[1744224561430,8.4365,118.57,118.55,0.05553084]
[1744224561828,80.9965,118.57,118.55,0.05553084]
[1744224562128,72.56,118.57,118.55,0.05553084]
[1744224562628,80.9965,118.57,118.55,0.05553084]
[1744224562928,72.56,118.57,118.55,0.05553084]
[1744224564928,0.05964379,118.58,118.55,8.49273084]
[1744224565126,0.05964379,118.58,118.55,0.05553084]
[1744224565419,8.4367,118.57,118.55,0.05553084]
[1744224565617,0.05964379,118.58,118.55,0.05553084]
[1744224565820,38.58399465,118.58,118.55,0.05553084]
[1744224566024,46.96125086,118.56,118.55,0.05553084]
[1744224566231,121.18816044,118.56,118.55,0.05553084]
[1744224566730,82.66380958,118.56,118.55,0.05553084]
[1744224568331,10.12380958,118.56,118.55,0.05553084]
[1744224568626,0.05964379,118.58,118.55,0.05553084]
[1744224569530,8.4365,118.57,118.55,0.05553084]
[1744224569834,0.05964379,118.58,118.55,0.05553084]
[1744224570131,72.54,118.57,118.55,0.05553084]
[1744224570331,111.06435086,118.57,118.49,8.7701]
[1744224570528,38.52435086,118.52,118.45,373.7924]
[1744224570735,8.4433,118.48,118.45,4.4303]
[1744224571231,72.54,118.49,118.45,4.4303]
[1744224571232,80.9822,118.49,118.45,4.4303]
[1744224571447,72.54,118.49,118.45,4.4303]
[1744224571633,0.05464108,118.48,118.46,0.05941021]
[1744224572227,72.54,118.54,118.46,13.10471021]
[1744224572428,72.54,118.58,118.49,38.52435086]
[1744224572627,72.54,118.58,118.51,38.52435086]
[1744224572832,72.54,118.58,118.52,4.6053]
[1744224573234,0.0535916,118.56,118.54,0.05730731]
[1744224574036,8.4904916,118.56,118.54,0.05730731]
[1744224574735,0.0535916,118.56,118.54,0.05730731]
[1744224575231,8.4908916,118.56,118.54,0.05730731]
[1744224575737,0.0535916,118.56,118.54,0.05730731]
[1744224576130,72.54,118.62,118.54,0.05730731]
[1744224576332,72.54,118.62,118.52,4.6053]
[1744224576635,38.52435086,118.61,118.52,4.6053]
[1744224576840,72.54,118.62,118.55,38.52435086]
[1744224577337,0.06119357,118.6,118.58,8.4354]
[1744224578033,0.06119357,118.6,118.57,12.84399656]
[1744224578231,0.06119357,118.6,118.57,4.40789656]
[1744224578835,110.86435086,118.67,118.57,4.40789656]
[1744224579031,8.4346,118.6,118.57,4.3542]
[1744224579633,8.4337,118.61,118.57,12.7896]
[1744224579829,38.52435086,118.65,118.57,4.3542]
[1744224580031,72.34,118.67,118.58,0.06251834]
[1744224580232,890.93898408,118.69,118.61,38.52435086]
[1744224580543,283.39898408,118.69,118.61,38.52435086]
[1744224580847,283.39898408,118.69,118.65,38.52435086]
[1744224581036,283.39898408,118.69,118.63,38.52435086]
[1744224581243,0.06197714,118.68,118.66,8.49005841]
[1744224581543,0.06197714,118.68,118.66,0.06045841]
[1744224582638,8.429,118.67,118.66,0.06045841]
[1744224583338,8.429,118.67,118.66,0.00475142]
[1744224584340,46.95335086,118.67,118.66,0.00475142]
[1744224584541,38.52435086,118.67,118.6,8.711]
[1744224585143,8.4358,118.58,118.55,365.0]
[1744224585443,72.3,118.64,118.55,365.0]
[1744224585742,8.4362,118.57,118.54,13.1234]
[1744224586248,8.49948464,118.57,118.54,13.17961]
[1744224587341,0.06308464,118.57,118.54,13.17961]
[1744224589152,8.4369,118.56,118.54,13.17961]
[1744224589342,0.06308464,118.57,118.54,4.67751]
[1744224589541,0.06308464,118.57,118.54,0.05621]
[1744224589848,38.5874355,118.57,118.54,0.05621]
[1744224590348,8.4376,118.55,118.54,0.05621]
[1744224592740,0.06308464,118.57,118.54,0.05621]
[1744224593251,8.4373,118.56,118.54,0.05621]
[1744224593547,0.06308464,118.57,118.54,0.05621]
[1744224595451,8.49978464,118.57,118.54,0.05621]
[1744224595844,0.06308464,118.57,118.54,0.05621]
[1744224596045,8.4369,118.56,118.54,0.05621]
[1744224596639,0.06308464,118.57,118.54,0.05621]
[1744224596640,8.49948464,118.57,118.54,0.05621]
[1744224596949,0.06308464,118.57,118.54,0.05621]
[1744224597351,8.4373,118.56,118.54,0.05621]
[1744224597854,0.06308464,118.57,118.54,0.05621]
[1744224598151,110.9074355,118.57,118.54,0.05621]
[1744224598449,38.52435086,118.55,118.49,12.69]
[1744224598652,8.4411,118.5,118.49,4.2424]
[1744224598953,38.52435086,118.53,118.46,4.3388]
[1744224599150,8.4422,118.49,118.46,4.3388]
[1744224599350,38.52435086,118.53,118.46,4.3388]
[1744224599552,38.52435086,118.51,118.45,4.389]
[1744224599861,38.52435086,118.51,118.48,0.06235602]
[1744224599862,38.57907054,118.51,118.48,0.06235602]
[1744224600448,0.05471968,118.51,118.48,0.06235602]
[1744224601656,72.34,118.59,118.48,0.06235602]
[1744224601954,72.34,118.59,118.5,8.441]
[1744224602154,110.86435086,118.59,118.48,4.2693]
[1744224602350,38.52435086,118.57,118.48,4.2693]
[1744224602961,0.06140202,118.54,118.51,0.05742414]
[1744224603853,72.40140202,118.54,118.51,0.05742414]
[1744224604156,8.4397,118.52,118.51,0.05742414]
[1744224605557,8.4394,118.53,118.51,0.05742414]
[1744224605746,0.06140202,118.54,118.51,0.05742414]
[1744224606250,72.36,118.53,118.51,0.05742414]
[1744224606454,8.4397,118.52,118.51,0.05742414]
[1744224606751,0.06140202,118.54,118.51,0.05742414]
[1744224606951,8.439,118.53,118.51,0.05742414]
[1744224607647,0.06140202,118.54,118.51,0.05742414]
[1744224608048,0.06140202,118.54,118.51,8.49752414]
[1744224608655,0.06140202,118.54,118.51,0.05742414]
[1744224608858,8.49970202,118.54,118.51,0.05742414]
[1744224609158,0.06140202,118.54,118.51,0.05742414]
[1744224610357,718.30435086,118.53,118.45,365.0]
[1744224610557,8.4417,118.5,118.45,38.52435086]
[1744224610752,679.78,118.53,118.44,8.4351]
[1744224610955,38.52435086,118.52,118.44,8.4351]
[1744224611556,8.4426,118.48,118.47,0.06223109]
[1744224612747,8.50119328,118.49,118.47,0.06223109]
[1744224612950,0.05929328,118.49,118.47,0.06223109]
[1744224613957,8.4426,118.48,118.47,0.06223109]
[1744224614155,0.05929328,118.49,118.47,0.06223109]
[1744224614560,8.50149328,118.49,118.47,0.06223109]
[1744224614953,0.05929328,118.49,118.47,0.06223109]
[1744224615561,616.1993,118.53,118.47,0.06223109]
[1744224615753,72.12,118.55,118.47,0.06223109]
[1744224615949,72.12,118.55,118.48,38.52435086]
[1744224616261,80.5579,118.55,118.51,8.4399]
[1744224616471,72.12,118.55,118.48,38.52435086]
[1744224616656,72.12,118.55,118.47,365.0]
[1744224616861,0.05729784,118.53,118.5,0.06282619]
[1744224618757,0.05729784,118.53,118.5,8.50362619]
[1744224619064,72.12,118.59,118.51,38.52435086]
[1744224619270,8.4358,118.58,118.54,8.4379]
[1744224619453,72.12,118.63,118.53,38.52435086]
[1744224619654,1.68605631,118.62,118.57,38.52435086]
[1744224619859,1.68605631,118.62,118.58,4.5806]
[1744224620253,0.06015446,118.61,118.59,0.05736724]
[1744224620452,0.06015446,118.61,118.53,365.0]
[1744224620864,8.434,118.6,118.59,0.06387548]
[1744224621169,1.68619846,118.61,118.56,0.06438953]
[1744224621370,1.74571342,118.61,118.56,0.06438953]
[1744224621567,73.84571342,118.61,118.56,0.06438953]
[1744224621866,73.84571342,118.61,118.57,8.436]
[1744224622072,1.74571342,118.61,118.56,62.06438953]
[1744224622570,1.74571342,118.61,118.57,38.52435086]
[1744224622962,1.74571342,118.61,118.58,8.4349]
[1744224623370,0.05951496,118.61,118.58,8.4349]
[1744224623871,0.05951496,118.61,118.59,8.4347]
[1744224624073,0.05951496,118.61,118.57,38.52435086]
[1744224624275,0.1085,118.68,118.57,407.73485086]
[1744224624576,40.20969677,118.67,118.58,4.3661]
[1744224624769,8.4322,118.63,118.58,4.3661]
[1744224624970,1.68534591,118.67,118.58,4.3661]
[1744224625373,1.68534591,118.67,118.59,38.52435086]
[1744224625584,0.06315869,118.64,118.61,0.06117602]
[1744224625766,0.06315869,118.64,118.61,38.58552688]
[1744224625966,0.06315869,118.64,118.61,0.06117602]
[1744224626270,8.49465869,118.64,118.61,0.06117602]
[1744224626777,8.4323,118.63,118.61,0.06117602]
[1744224626975,0.06315869,118.64,118.61,0.06117602]
[1744224627682,0.06315869,118.64,118.62,8.4319]
[1744224627867,8.4294,118.67,118.61,0.06117602]
[1744224628067,355.49898408,118.69,118.6,38.52435086]
[1744224628366,8.433,118.62,118.58,407.89045086]
[1744224628670,38.52435086,118.68,118.58,369.3661]
[1744224628871,8.4317,118.64,118.59,38.52435086]
[1744224629070,8.4317,118.64,118.58,369.3661]
[1744224629071,110.63843405,118.64,118.62,0.06390216]
[1744224629270,38.52435086,118.63,118.52,369.6105]
[1744224629469,8.4358,118.58,118.54,8.4379]
[1744224629672,72.06,118.59,118.52,373.9978]
[1744224629870,8.4373,118.56,118.52,382.4371]
[1744224630270,72.06,118.59,118.52,373.9978]
[1744224630475,8.50026378,118.55,118.53,0.06002952]
[1744224630679,0.06266378,118.55,118.53,0.06002952]
[1744224631575,0.2335,118.63,118.53,38.58438038]
[1744224631774,0.2335,118.63,118.52,8.9978]
[1744224632083,38.52435086,118.62,118.53,70.4385]
[1744224632382,38.52435086,118.6,118.53,62.0]
[1744224632576,8.4368,118.57,118.54,8.4382]
[1744224632780,0.05739481,118.58,118.55,0.05907933]
[1744224634782,8.49319481,118.58,118.55,0.05907933]
[1744224634982,0.05739481,118.58,118.55,0.05907933]
[1744224635280,75.6023,118.68,118.57,38.52435086]
[1744224635481,8.4303,118.66,118.62,8.4324]
[1744224635778,607.42,118.7,118.62,38.52435086]
[1744224636375,0.05806725,118.67,118.64,0.05721339]
[1744224636988,8.427,118.7,118.64,38.58156425]
[1744224637174,93.12392239,118.73,118.64,43.01896425]